fUSD/lending_fUSD_20260116
["ID","MTS","AMOUNT","RATE_DAILY","PERIOD"]
[402144466,1768553573126,-500.0,0.00035616,10]
[402144467,1768553573135,-1345.33,0.00035616,10]
[402144468,1768553573144,-648.45,0.00035616,10]
[402144469,1768553573154,-500.0,0.00035616,10]
[402144470,1768553573163,-501.83112328,0.00035616,10]
[402144471,1768553573172,-1052.14,0.00035616,10]
[402144472,1768553573181,-500.0,0.00035616,10]
[402144473,1768553573190,-500.0,0.00035616,10]
[402144474,1768553573199,-500.0,0.00035616,10]
[402144475,1768553573209,-990.43,0.00035616,10]
[402144476,1768553573219,-500.0,0.00035616,10]
[402144477,1768553573228,-500.0,0.00035616,10]
[402144478,1768553573237,-500.0,0.00035616,10]
[402144479,1768553573247,-877.08,0.00035616,10]
[402144480,1768553573256,-1245.81,0.00035616,10]
[402144481,1768553573266,-500.0,0.00035616,10]
[402144482,1768553573276,-501.33703436,0.00035616,10]
[402144483,1768553573286,-502.4597894,0.00035616,10]
[402144484,1768553573295,-300.0,0.00035616,10]
[402144485,1768553573304,-665.86,0.00035616,10]
[402144486,1768553573314,-1029.8,0.00035616,10]
[402144487,1768553573323,-500.0,0.00035616,10]
[402144488,1768553573332,-500.0,0.00035616,10]
[402144489,1768553573342,-1298.7,0.00035616,10]
[402144490,1768553573351,-581.72,0.00035616,10]
[402144491,1768553573360,-850.69,0.00035616,10]
[402144492,1768553573369,-995.5,0.00035616,10]
[402144493,1768553573379,-502.00744164,0.00035616,10]
[402144494,1768553573388,-1075.5,0.00035616,10]
[402144495,1768553573398,-500.0,0.00035616,10]
[402144496,1768553573407,-500.0,0.00035616,10]
[402144497,1768553573417,-529.03,0.00035616,10]
[402144498,1768553573427,-500.0,0.00035616,10]
[402144499,1768553573436,-519.23,0.00035616,10]
[402144500,1768553573446,-716.08,0.00035616,10]
[402144501,1768553573461,-500.0,0.00035616,10]
[402144502,1768553573476,-1363.31,0.00035616,10]
[402144503,1768553573485,-598.71,0.00035616,10]
[402144504,1768553573495,-1221.02,0.00035616,10]
[402144505,1768553573504,-500.0,0.00035616,10]
[402144506,1768553573514,-1064.34,0.00035616,10]
[402144507,1768553573525,-823.04,0.00035616,10]
[402144508,1768553573535,-228.25384067,0.00035616,2]
[402144509,1768553573544,-500.0,0.00035616,10]
[402144510,1768553573553,-505.93269686,0.00035616,10]
[402144511,1768553573564,-500.0,0.00035616,10]
[402144512,1768553573574,-2853.19,0.00035616,10]
[402144513,1768553573583,-500.0,0.00035616,10]
[402144514,1768553573594,-562.06209008,0.00035616,10]
[402144515,1768553573603,-500.0,0.00035616,10]
[402144516,1768553573613,-500.0,0.00035616,10]
[402144517,1768553573622,-549.28,0.00035616,10]
[402144518,1768553573631,-500.0,0.00035616,10]
[402144519,1768553573641,-500.0,0.00035616,10]
[402144520,1768553573650,-500.0,0.00035616,10]
[402144521,1768553573659,-913.43,0.00035616,10]
[402144522,1768553573670,-591.9,0.00035616,10]
[402144523,1768553573679,-500.0,0.00035616,10]
[402144524,1768553573688,-500.0,0.00035616,10]
[402144525,1768553573703,-500.0,0.00035616,10]
[402144526,1768553573713,-500.0,0.00035616,10]
[402144527,1768553573723,-503.52480101,0.00035616,10]
[402144528,1768553573732,-2393.97,0.00035616,10]
[402144529,1768553573741,-500.0,0.00035616,10]
[402144530,1768553573751,-500.0,0.00035616,10]
[402144531,1768553573760,-500.0,0.00035616,10]
[402144532,1768553573769,-500.0,0.00035616,10]
[402144533,1768553573779,-500.0,0.00035616,10]
[402144534,1768553573789,-500.0,0.00035616,10]
[402144535,1768553573799,-247.74730665,0.00035616,10]
[402144536,1768553573808,-500.0,0.00035616,10]
[402144537,1768553573818,-500.0,0.00035616,10]
[402144538,1768553573827,-500.0,0.00035616,10]
[402144539,1768553573836,-500.0,0.00035616,10]
[402144540,1768553573846,-2257.21,0.00035616,10]
[402144541,1768553573855,-500.0,0.00035616,10]
[402144542,1768553573865,-712.99,0.00035616,10]
[402144543,1768553573875,-589.47,0.00035616,10]
[402144544,1768553573885,-500.0,0.00035616,10]
[402144545,1768553573894,-546.1,0.00035616,10]
[402144546,1768553573904,-500.0,0.00035616,10]
[402144547,1768553573915,-805.83,0.00035616,10]
[402144548,1768553573924,-500.0,0.00035616,10]
[402144549,1768553573934,-500.0,0.00035616,10]
[402144550,1768553573944,-500.0,0.00035616,10]
[402144551,1768553573954,-500.32433702,0.00035616,10]
[402144552,1768553573964,-500.0,0.00035616,10]
[402144553,1768553573974,-1412.18,0.00035616,10]
[402144554,1768553573984,-500.0,0.00035616,10]
[402144555,1768553573994,-500.0,0.00035616,10]
[402144556,1768553574003,-1000.0,0.00035616,10]
[402144557,1768553574013,-500.0,0.00035616,10]
[402144558,1768553574024,-500.0,0.00035616,10]
[402144559,1768553574034,-500.0,0.00035616,10]
[402144560,1768553574044,-500.0,0.00035616,10]
[402144561,1768553574054,-200.0,0.00035616,120]
[402144562,1768553574063,-500.0,0.00035616,10]
[402144563,1768553574074,-1245.62,0.00035616,10]
[402144564,1768553574083,-661.07,0.00035616,10]
[402144565,1768553574093,-732.11,0.00035616,10]
[402144566,1768553574104,-693.86,0.00035616,10]
[402144567,1768553574114,-508.31402274,0.00035616,10]
[402144568,1768553574123,-500.0,0.00035616,10]
[402144569,1768553574132,-500.0,0.00035616,10]
[402144570,1768553574142,-1182.17,0.00035616,10]
[402144571,1768553574151,-652.47,0.00035616,10]
[402144572,1768553574161,-713.12,0.00035616,10]
[402144573,1768553574170,-714.22,0.00035616,10]
[402144574,1768553574180,-652.5,0.00035616,10]
[402144575,1768553574189,-212.39336484,0.00035616,10]
[402144576,1768553574198,-500.0,0.00035616,10]
[402144577,1768553574207,-500.0,0.00035616,10]
[402144578,1768553574216,-500.0,0.00035616,10]
[402144579,1768553574226,-500.0,0.00035616,10]
[402144580,1768553574235,-519.32182194,0.00035616,10]
[402144581,1768553574245,-502.94162912,0.00035616,10]
[402144582,1768553574255,-500.0,0.00035616,10]
[402144583,1768553574264,-1497.09,0.00035616,10]
[402144584,1768553574273,-500.0,0.00035616,10]
[402144585,1768553574283,-300.55677057,0.00035616,2]
[402144586,1768553574293,-1210.4,0.00035616,10]
[402144587,1768553574303,-1212.59,0.00035616,10]
[402144588,1768553574312,-941.66,0.00035616,10]
[402144589,1768553574322,-520.41563155,0.00035616,10]
[402144590,1768553574332,-500.0,0.00035616,10]
[402144591,1768553574342,-501.92562509,0.00035616,10]
[402144592,1768553574352,-500.0,0.00035616,10]
[402144593,1768553574362,-1223.9,0.00035616,10]
[402144594,1768553574372,-500.0,0.00035616,10]
[402144595,1768553574382,-1292.5,0.00035616,10]
[402144596,1768553574392,-1141.45,0.00035616,10]
[402144597,1768553574402,-885.86,0.00035616,10]
[402144598,1768553574411,-520.6,0.00035616,10]
[402144599,1768553574421,-500.0,0.00035616,10]
[402144600,1768553574431,-500.0,0.00035616,10]
[402144601,1768553574440,-3901.38,0.00035616,10]
[402144602,1768553574450,-1228.85,0.00035616,10]
[402144603,1768553574459,-440.34429758,0.00035616,10]
[402144604,1768553574469,-532.57,0.00035616,10]
[402144605,1768553574479,-1219.5,0.00035616,10]
[402144606,1768553574490,-544.68,0.00035616,10]
[402144607,1768553574499,-2909.8,0.00035616,10]
[402144608,1768553574510,-858.87,0.00035616,10]
[402144609,1768553574525,-500.0,0.00035616,10]
[402144610,1768553574544,-993.01,0.00035616,10]
[402144611,1768553574558,-500.0,0.00035616,10]
[402144612,1768553574568,-503.10464966,0.00035616,10]
[402144613,1768553574578,-999.49,0.00035616,10]
[402144614,1768553574588,-500.0,0.00035616,10]
[402144615,1768553574599,-1760.07,0.00035616,10]
[402144616,1768553574609,-553.74,0.00035616,10]
[402144617,1768553574620,-595.32781389,0.00035616,10]
[402144618,1768553574631,-500.0,0.00035616,10]
[402144619,1768553574641,-1541.19,0.00035616,10]
[402144620,1768553574651,-503.05651009,0.00035616,10]
[402144621,1768553574661,-201.73731735,0.00035616,2]
[402144622,1768553574670,-500.0,0.00035616,10]
[402144623,1768553574679,-500.0,0.00035616,10]
[402144624,1768553574688,-505.32168065,0.00035616,10]
[402144625,1768553574698,-500.0,0.00035616,10]
[402144626,1768553574708,-599.03,0.00035616,10]
[402144627,1768553574717,-1004.55,0.00035616,10]
[402144628,1768553574727,-500.0,0.00035616,10]
[402144629,1768553574736,-500.0,0.00035616,10]
[402144630,1768553574747,-1256.3,0.00035616,10]
[402144631,1768553574757,-722.08,0.00035616,10]
[402144632,1768553574766,-173.96119176,0.00035616,10]
[402144633,1768553574776,-500.0,0.00035616,10]
[402144634,1768553574785,-1627.41,0.00035616,10]
[402144635,1768553574795,-500.0,0.00035616,10]
[402144636,1768553574804,-500.0,0.00035616,10]
[402144637,1768553574814,-500.0,0.00035616,10]
[402144638,1768553574823,-1143.9,0.00035616,10]
[402144639,1768553574833,-500.0,0.00035616,10]
[402144640,1768553574842,-1224.65,0.00035616,10]
[402144641,1768553574852,-500.0,0.00035616,10]
[402144642,1768553574861,-500.0,0.00035616,10]
[402144643,1768553574873,-560.6,0.00035616,10]
[402144644,1768553574882,-500.0,0.00035616,10]
[402144645,1768553574893,-2225.78,0.00035616,10]
[402144646,1768553574903,-1155.7,0.00035616,10]
[402144647,1768553574913,-500.0,0.00035616,10]
[402144648,1768553574924,-637.11,0.00035616,10]
[402144649,1768553574935,-614.31,0.00035616,10]
[402144650,1768553574944,-500.0,0.00035616,10]
[402144651,1768553574954,-2192.51,0.00035616,10]
[402144652,1768553574964,-500.0,0.00035616,10]
[402144653,1768553574975,-397.16393202,0.00035616,10]
[402144654,1768553574985,-500.0,0.00035616,10]
[402144655,1768553574996,-500.0,0.00035616,10]
[402144656,1768553575006,-758.24,0.00035616,10]
[402144657,1768553575017,-587.81686372,0.00035616,10]
[402144658,1768553575027,-500.0,0.00035616,10]
[402144659,1768553575037,-500.0,0.00035616,10]
[402144660,1768553575047,-500.0,0.00035616,10]
[402144661,1768553575057,-2013.58,0.00035616,10]
[402144662,1768553575067,-505.95754669,0.00035616,10]
[402144663,1768553575078,-2864.87,0.00035616,10]
[402144664,1768553575088,-500.0,0.00035616,10]
[402144665,1768553575098,-808.72,0.00035616,10]
[402144666,1768553575107,-1567.87,0.00035616,10]
[402144667,1768553575117,-500.0,0.00035616,10]
[402144668,1768553575127,-500.0,0.00035616,10]
[402144669,1768553575137,-518.17,0.00035616,10]
[402144670,1768553575147,-1811.28,0.00035616,10]
[402144671,1768553575156,-198.50161135,0.00035616,10]
[402144672,1768553575166,-500.0,0.00035616,10]
[402144673,1768553575176,-500.0,0.00035616,10]
[402144674,1768553575186,-558.81,0.00035616,10]
[402144675,1768553575195,-500.0,0.00035616,5]
[402144676,1768553575206,-1071.23,0.00035616,10]
[402144677,1768553575217,-659.01,0.00035616,10]
[402144678,1768553575227,-866.89,0.00035616,10]
[402144679,1768553575237,-500.0,0.00035616,10]
[402144680,1768553575248,-500.0,0.00035616,10]
[402144681,1768553575257,-547.39,0.00035616,10]
[402144682,1768553575267,-1032.65,0.00035616,10]
[402144683,1768553575277,-759.31,0.00035616,10]
[402144684,1768553575287,-503.06896719,0.00035616,10]
[402144685,1768553575297,-500.0,0.00035616,10]
[402144686,1768553575307,-627.36586935,0.00035616,10]
[402144687,1768553575317,-637.41,0.00035616,10]
[402144688,1768553575328,-501.89888229,0.00035616,10]
[402144689,1768553575337,-500.0,0.00035616,10]
[402144690,1768553575347,-1020.76,0.00035616,10]
[402144691,1768553575356,-500.0,0.00035616,10]
[402144692,1768553575366,-1128.16,0.00035616,10]
[402144693,1768553575376,-500.0,0.00035616,10]
[402144694,1768553575385,-503.00239826,0.00035616,10]
[402144695,1768553575395,-1999.0,0.00035616,120]
[402144696,1768553575405,-7210.62,0.00035616,10]
[402144697,1768553575414,-502.94844914,0.00035616,10]
[402144698,1768553575424,-500.0,0.00035616,10]
[402144699,1768553575434,-5211.07,0.00035616,10]
[402144700,1768553575443,-1681.96,0.00035616,10]
[402144701,1768553575453,-500.0,0.00035616,10]
[402144702,1768553575463,-300.0,0.00035616,2]
[402144703,1768553575472,-729.24,0.00035616,10]
[402144704,1768553575482,-500.0,0.00035616,10]
[402144705,1768553575492,-521.48,0.00035616,10]
[402144706,1768553575502,-5144.07,0.00035616,10]
[402144707,1768553575511,-500.0,0.00035616,10]
[402144708,1768553575526,-1064.3,0.00035616,10]
[402144709,1768553575535,-505.44209772,0.00035616,10]
[402144710,1768553575546,-500.0,0.00035616,10]
[402144711,1768553575556,-500.0,0.00035616,10]
[402144712,1768553575567,-532.27,0.00035616,10]
[402144713,1768553575577,-500.0,0.00035616,10]
[402144714,1768553575587,-500.0,0.00035616,10]
[402144715,1768553575598,-1000.95,0.00035616,10]
[402144716,1768553575609,-500.0,0.00035616,10]
[402144717,1768553575618,-1000.0,0.00035616,10]
[402144718,1768553575629,-672.3,0.00035616,10]
[402144719,1768553575639,-500.0,0.00035616,10]
[402144720,1768553575649,-2351.16,0.00035616,10]
[402144721,1768553575660,-679.92,0.00035616,10]
[402144722,1768553575671,-500.0,0.00035616,10]
[402144723,1768553575681,-642.7,0.00035616,10]
[402144724,1768553575691,-1048.19,0.00035616,10]
[402144725,1768553575702,-500.0,0.00035616,10]
[402144726,1768553575712,-500.0,0.00035616,10]
[402144727,1768553575722,-455.04614346,0.00035616,10]
[402144728,1768553575732,-500.0,0.00035616,10]
[402144729,1768553575743,-500.0,0.00035616,10]
[402144730,1768553575753,-2044.82,0.00035616,10]
[402144731,1768553575763,-804.46,0.00035616,10]
[402144732,1768553575774,-500.0,0.00035616,10]
[402144733,1768553575784,-735.56,0.00035616,10]
[402144734,1768553575795,-500.0,0.00035616,10]
[402144735,1768553575805,-793.57,0.00035616,10]
[402144736,1768553575815,-500.0,0.00035616,10]
[402144737,1768553575826,-2221.23,0.00035616,10]
[402144738,1768553575836,-500.0,0.00035616,10]
[402144739,1768553575848,-1159.07,0.00035616,10]
[402144740,1768553575859,-500.0,0.00035616,10]
[402144741,1768553575871,-580.85,0.00035616,10]
[402144742,1768553575881,-941.49,0.00035616,10]
[402144743,1768553575892,-599.94,0.00035616,10]
[402144744,1768553575903,-500.0,0.00035616,10]
[402144745,1768553575913,-500.52337327,0.00035616,3]
[402144746,1768553575924,-500.0,0.00035616,10]
[402144747,1768553575935,-500.0,0.00035616,10]
[402144748,1768553575945,-677.99,0.00035616,10]
[402144749,1768553575956,-1202.41,0.00035616,10]
[402144750,1768553575968,-2033.16,0.00035616,10]
[402144751,1768553575979,-2114.42,0.00035616,10]
[402144752,1768553575989,-500.0,0.00035616,10]
[402144753,1768553575999,-500.0,0.00035616,10]
[402144754,1768553576010,-1524.13,0.00035616,10]
[402144755,1768553576020,-500.0,0.00035616,10]
[402144756,1768553576031,-953.55,0.00035616,10]
[402144757,1768553576041,-500.0,0.00035616,10]
[402144758,1768553576051,-1013.89,0.00035616,10]
[402144759,1768553576060,-556.39,0.00035616,10]
[402144760,1768553576070,-500.0,0.00035616,10]
[402144761,1768553576080,-500.0,0.00035616,10]
[402144762,1768553576092,-501.8725864,0.00035616,10]
[402144763,1768553576103,-500.0,0.00035616,10]
[402144764,1768553576467,-504.68868501,0.00035616,10]
[402144765,1768553576483,-500.0,0.00035616,10]
[402144766,1768553576492,-500.0,0.00035616,10]
[402144767,1768553576502,-593.7,0.00035616,10]
[402144768,1768553576512,-1302.19,0.00035616,10]
[402144769,1768553576524,-500.0,0.00035616,10]
[402144770,1768553576533,-500.0,0.00035616,10]
[402144771,1768553576542,-859.25,0.00035616,10]
[402144772,1768553576553,-500.0,0.00035616,10]
[402144773,1768553576562,-623.79,0.00035616,10]
[402144774,1768553576574,-1282.3,0.00035616,10]
[402144775,1768553576584,-500.0,0.00035616,10]
[402144776,1768553576598,-500.0,0.00035616,10]
[402144777,1768553576608,-503.64356487,0.00035616,10]
[402144778,1768553576619,-500.0,0.00035616,10]
[402144779,1768553576629,-1084.77,0.00035616,10]
[402144780,1768553576639,-500.0,0.00035616,10]
[402144781,1768553576649,-606.36,0.00035616,10]
[402144782,1768553576658,-500.0,0.00035616,10]
[402144783,1768553576668,-500.0,0.00035616,10]
[402144784,1768553576677,-647.21,0.00035616,10]
[402144785,1768553576687,-500.0,0.00035616,10]
[402144786,1768553576696,-500.0,0.00035616,10]
[402144787,1768553576706,-781.44,0.00035616,10]
[402144788,1768553576715,-500.59687142,0.00035616,10]
[402144789,1768553576725,-616.11,0.00035616,10]
[402144790,1768553576735,-500.0,0.00035616,10]
[402144791,1768553576746,-731.99,0.00035616,10]
[402144792,1768553576755,-500.0,0.00035616,10]
[402144793,1768553576765,-907.52,0.00035616,10]
[402144794,1768553576775,-500.0,0.00035616,10]
[402144795,1768553576785,-500.0,0.00035616,10]
[402144796,1768553576794,-849.36,0.00035616,10]
[402144797,1768553576804,-500.0,0.00035616,10]
[402144798,1768553576814,-500.0,0.00035616,10]
[402144799,1768553576823,-643.32,0.00035616,10]
[402144800,1768553576833,-1477.23,0.00035616,10]
[402144801,1768553576842,-503.63076217,0.00035616,10]
[402144802,1768553576852,-500.0,0.00035616,10]
[402144803,1768553576861,-823.29,0.00035616,10]
[402144804,1768553576870,-501.5021581,0.00035616,10]
[402144805,1768553576879,-802.79,0.00035616,10]
[402144806,1768553576887,-500.0,0.00035616,10]
[402144807,1768553576896,-713.0,0.00035616,10]
[402144808,1768553576905,-725.02,0.00035616,10]
[402144809,1768553576915,-1029.59,0.00035616,10]
[402144810,1768553576925,-500.0,0.00035616,10]
[402144811,1768553576934,-2502.55,0.00035616,10]
[402144812,1768553576944,-470.94626667,0.00035616,10]
[402144813,1768553576954,-500.0,0.00035616,10]
[402144814,1768553576965,-1013.39,0.00035616,10]
[402144815,1768553576975,-761.36,0.00035616,10]
[402144816,1768553576984,-1172.78,0.00035616,10]
[402144817,1768553576995,-500.0,0.00035616,10]
[402144818,1768553577004,-500.0,0.00035616,10]
[402144819,1768553577015,-500.0,0.00035616,10]
[402144820,1768553577027,-501.45347865,0.00035616,10]
[402144821,1768553577036,-500.0,0.00035616,10]
[402144822,1768553577046,-764.71,0.00035616,10]
[402144823,1768553577056,-704.6,0.00035616,10]
[402144824,1768553577065,-500.0,0.00035616,10]
[402144825,1768553577075,-4884.35,0.00035616,10]
[402144826,1768553577085,-629.83,0.00035616,10]
[402144827,1768553577094,-1262.69,0.00035616,10]
[402144828,1768553577104,-500.0,0.00035616,10]
[402144829,1768553577113,-500.0,0.00035616,10]
[402144830,1768553577124,-1064.4,0.00035616,10]
[402144831,1768553577133,-508.6432873,0.00035616,10]
[402144832,1768553577142,-525.03039312,0.00035616,10]
[402144833,1768553577152,-564.83,0.00035616,10]
[402144834,1768553577161,-1260.28,0.00035616,10]
[402144835,1768553577171,-662.32,0.00035616,10]
[402144836,1768553577180,-1785.36,0.00035616,10]
[402144837,1768553577189,-1338.09,0.00035616,10]
[402144838,1768553577199,-500.0,0.00035616,10]
[402144839,1768553577208,-750.48,0.00035616,10]
[402144840,1768553577218,-500.0,0.00035616,10]
[402144841,1768553577227,-504.71416881,0.00035616,10]
[402144842,1768553577237,-500.0,0.00035616,10]
[402144843,1768553577247,-897.64,0.00035616,10]
[402144844,1768553577256,-500.0,0.00035616,10]
[402144845,1768553577265,-500.0,0.00035616,10]
[402144846,1768553577276,-500.0,0.00035616,10]
[402144847,1768553577285,-203.68223634,0.00035616,10]
[402144848,1768553577294,-591.5,0.00035616,10]
[402144849,1768553577304,-500.0,0.00035616,10]
[402144850,1768553577313,-1018.43,0.00035616,10]
[402144851,1768553577323,-764.04,0.00035616,10]
[402144852,1768553577332,-268.79491973,0.00035616,10]
[402144853,1768553577341,-747.98,0.00035616,10]
[402144854,1768553577351,-500.0,0.00035616,10]
[402144855,1768553577360,-500.0,0.00035616,10]
[402144856,1768553577369,-500.0,0.00035616,10]
[402144857,1768553577378,-500.0,0.00035616,10]
[402144858,1768553577387,-500.0,0.00035616,10]
[402144859,1768553577397,-500.0,0.00035616,10]
[402144860,1768553577406,-500.0,0.00035616,10]
[402144861,1768553577415,-505.41,0.00035616,10]
[402144862,1768553577424,-500.0,0.00035616,10]
[402144863,1768553577434,-500.0,0.00035616,10]
[402144864,1768553577443,-500.0,0.00035616,10]
[402144865,1768553577453,-500.0,0.00035616,10]
[402144866,1768553577466,-500.0,0.00035616,10]
[402144867,1768553577475,-6302.12,0.00035616,10]
[402144868,1768553577484,-500.0,0.00035616,10]
[402144869,1768553577493,-1736.72,0.00035616,10]
[402144870,1768553577502,-500.0,0.00035616,10]
[402144871,1768553577511,-500.0,0.00035616,10]
[402144872,1768553577519,-500.0,0.00035616,10]
[402144873,1768553577531,-500.0,0.00035616,10]
[402144874,1768553577540,-501.75186749,0.00035616,2]
[402144875,1768553577549,-500.0,0.00035616,10]
[402144876,1768553577558,-500.0,0.00035616,10]
[402144877,1768553577567,-500.0,0.00035616,10]
[402144878,1768553577575,-500.0,0.00035616,10]
[402144879,1768553577584,-500.0,0.00035616,10]
[402144880,1768553577594,-667.66,0.00035616,10]
[402144881,1768553577614,-500.0,0.00035616,10]
[402144882,1768553577623,-500.0,0.00035616,10]
[402144883,1768553577633,-1002.58,0.00035616,10]
[402144884,1768553577641,-528.13,0.00035616,10]
[402144885,1768553577651,-500.0,0.00035616,10]
[402144886,1768553577659,-504.7343262,0.00035616,10]
[402144887,1768553577668,-500.0,0.00035616,10]
[402144888,1768553577677,-500.0,0.00035616,10]
[402144889,1768553577685,-500.0,0.00035616,10]
[402144890,1768553577694,-1041.6,0.00035616,10]
[402144891,1768553577703,-848.85,0.00035616,10]
[402144892,1768553577712,-500.0,0.00035616,10]
[402144893,1768553577720,-500.0,0.00035616,10]
[402144894,1768553577729,-1353.3,0.00035616,10]
[402144895,1768553577738,-500.0,0.00035616,10]
[402144896,1768553577747,-297.12524933,0.00035616,10]
[402144897,1768553577755,-229.64858945,0.00035616,2]
[402144898,1768553577764,-1109.73,0.00035616,10]
[402144899,1768553577773,-500.0,0.00035616,10]
[402144900,1768553577782,-506.9024722,0.00035616,10]
[402144901,1768553577791,-503.90503522,0.00035616,10]
[402144902,1768553577800,-500.0,0.00035616,10]
[402144903,1768553577809,-500.0,0.00035616,10]
[402144904,1768553577817,-500.0,0.00035616,10]
[402144905,1768553577826,-1021.74,0.00035616,10]
[402144906,1768553577834,-623.92,0.00035616,10]
[402144907,1768553577843,-737.24,0.00035616,10]
[402144908,1768553577852,-508.71337745,0.00035616,10]
[402144909,1768553577861,-164.87632597,0.00035616,10]
[402144910,1768553577869,-500.0,0.00035616,10]
[402144911,1768553577878,-539.09,0.00035616,10]
[402144912,1768553577887,-935.75,0.00035616,10]
[402144913,1768553577895,-1333.16,0.00035616,10]
[402144914,1768553577904,-907.64,0.00035616,10]
[402144915,1768553577913,-535.61,0.00035616,10]
[402144916,1768553577922,-686.98,0.00035616,10]
[402144917,1768553577932,-878.33,0.00035616,10]
[402144918,1768553577941,-664.49,0.00035616,10]
[402144919,1768553577951,-500.0,0.00035616,10]
[402144920,1768553577960,-1173.84,0.00035616,10]
[402144921,1768553577971,-500.0,0.00035616,10]
[402144922,1768553577980,-500.0,0.00035616,10]
[402144923,1768553577990,-500.0,0.00035616,10]
[402144924,1768553577999,-9836.18,0.00035616,10]
[402144925,1768553578009,-500.0,0.00035616,10]
[402144926,1768553578019,-500.0,0.00035616,10]
[402144927,1768553578029,-500.0,0.00035616,10]
[402144928,1768553578038,-500.0,0.00035616,10]
[402144929,1768553578052,-500.0,0.00035616,10]
[402144930,1768553578061,-1566.32,0.00035616,10]
[402144931,1768553578070,-754.56,0.00035616,10]
[402144932,1768553578079,-915.15,0.00035616,10]
[402144933,1768553578088,-500.0,0.00035616,10]
[402144934,1768553578098,-1137.0,0.00035616,10]
[402144935,1768553578115,-500.0,0.00035616,10]
[402144936,1768553578124,-600.0,0.00035616,30]
[402144937,1768553578134,-396.59067447,0.00035616,7]
[402144938,1768553578143,-500.0,0.00035616,5]
[402144939,1768553578152,-165.29454168,0.00035616,2]
[402144940,1768553578162,-312.79,0.00035616,2]
[402144941,1768553578173,-272.150552,0.00035616,31]
[402144942,1768553578184,-611.8369875,0.00035616,2]
[402144943,1768553578193,-2110.0,0.00035664,2]
[402144944,1768553578203,-500.0,0.00035753,120]
[402144945,1768553578214,-500.0,0.00035753,120]
[402144946,1768553578224,-500.0,0.00035753,120]
[402144947,1768553578234,-500.0,0.00035753,120]
[402144948,1768553578243,-500.0,0.00035753,120]
[402144949,1768553578251,-500.0,0.00035753,120]
[402144950,1768553578261,-500.0,0.00035753,120]
[402144951,1768553578271,-500.0,0.00035753,120]
[402144952,1768553578280,-500.0,0.00035753,120]
[402144953,1768553578289,-500.0,0.00035753,120]
[402144954,1768553578299,-500.0,0.00035753,120]
[402144955,1768553578308,-500.0,0.00035753,120]
[402144956,1768553578318,-500.0,0.00035753,120]
[402144957,1768553578327,-500.0,0.00035753,120]
[402144958,1768553578336,-500.0,0.00035753,120]
[402144959,1768553578345,-500.0,0.00035753,120]
[402144960,1768553578354,-500.0,0.00035753,120]
[402144961,1768553578363,-500.0,0.00035753,120]
[402144962,1768553578374,-500.0,0.00035753,120]
[402144963,1768553578383,-500.0,0.00035753,120]
[402144964,1768553578392,-500.0,0.00035753,120]
[402144965,1768553578402,-500.0,0.00035753,120]